fUSD/lending_fUSD_20241128
["ID","MTS","AMOUNT","RATE_DAILY","PERIOD"]
[343628331,1732762238345,-500.0,9.894e-05,2]
[343628332,1732762238354,-500.0,9.894e-05,2]
[343628333,1732762238364,-500.0,9.894e-05,2]
[343628334,1732762238373,-500.0,9.894e-05,2]
[343628335,1732762238382,-500.0,9.894e-05,2]
[343628336,1732762238391,-500.0,9.894e-05,2]
[343628337,1732762238400,-633.1878705,9.894e-05,2]
[343628338,1732762238409,-500.0,9.894e-05,2]
[343628339,1732762238419,-630.82,9.894e-05,2]
[343628340,1732762238428,-500.0,9.894e-05,2]
[343628341,1732762238438,-500.0,9.894e-05,2]
[343628342,1732762238450,-500.0,9.894e-05,2]
[343628343,1732762238459,-500.0,9.894e-05,2]
[343628344,1732762238468,-433.41261177,9.894e-05,2]
[343628345,1732762238477,-604.44381752,9.894e-05,2]
[343628346,1732762238487,-638.30228035,9.894e-05,2]
[343628347,1732762238496,-502.56934743,9.894e-05,2]
[343628348,1732762238505,-506.48999182,9.894e-05,2]
[343628349,1732762238515,-500.0,9.894e-05,2]
[343628350,1732762238524,-573.67461776,9.894e-05,2]
[343628351,1732762238533,-500.0,9.894e-05,2]
[343628352,1732762238543,-500.0,9.894e-05,2]
[343628353,1732762238553,-500.0,9.894e-05,2]
[343628354,1732762238562,-500.0,9.894e-05,2]
[343628355,1732762238571,-500.0,9.894e-05,2]
[343628356,1732762238580,-511.55769337,9.894e-05,2]
[343628357,1732762238590,-500.0,9.894e-05,2]
[343628358,1732762238599,-500.0,9.894e-05,2]
[343628359,1732762238608,-507.22167744,9.894e-05,2]
[343628360,1732762238617,-500.0,9.894e-05,2]
[343628361,1732762238627,-500.0,9.894e-05,2]
[343628362,1732762238637,-500.0,9.894e-05,2]
[343628363,1732762238646,-500.0,9.894e-05,2]
[343628364,1732762238655,-500.0,9.894e-05,2]
[343628365,1732762238664,-500.0,9.894e-05,2]
[343628366,1732762238673,-504.7459672,9.894e-05,2]
[343628367,1732762238685,-500.0,9.894e-05,2]
[343628368,1732762238697,-500.0,9.894e-05,2]
[343628369,1732762238706,-500.0,9.894e-05,2]
[343628370,1732762238715,-500.0,9.894e-05,2]
[343628371,1732762238724,-537.34,9.894e-05,2]
[343628372,1732762238733,-994.27,9.894e-05,2]
[343628373,1732762238742,-538.57927178,9.894e-05,2]
[343628374,1732762238753,-523.83,9.894e-05,2]
[343628376,1732762238762,-500.0,9.894e-05,2]
[343628378,1732762238771,-559.09,9.894e-05,2]
[343628380,1732762238780,-503.00694163,9.894e-05,2]
[343628383,1732762238789,-500.0,9.894e-05,2]
[343628386,1732762238800,-500.0,9.894e-05,2]
[343628387,1732762238811,-500.0,9.894e-05,2]
[343628389,1732762238820,-500.0,9.894e-05,2]
[343628391,1732762238829,-500.0,9.894e-05,2]
[343628393,1732762238838,-500.0,9.894e-05,2]
[343628395,1732762238848,-500.0,9.894e-05,2]
[343628397,1732762238857,-500.0,9.894e-05,2]
[343628399,1732762238866,-500.0,9.894e-05,2]
[343628401,1732762238876,-296.42203686,9.894e-05,2]
[343628403,1732762238885,-500.0,9.894e-05,2]
[343628405,1732762238896,-500.0,9.894e-05,2]
[343628407,1732762238909,-500.0,9.894e-05,2]
[343628409,1732762238924,-500.0,9.894e-05,2]
[343628411,1732762238933,-505.46405053,9.894e-05,2]
[343628413,1732762238943,-500.0,9.894e-05,2]
[343628415,1732762238951,-497.0,9.894e-05,2]
[343628417,1732762238961,-500.0,9.894e-05,2]
[343628419,1732762238970,-502.70277334,9.894e-05,2]
[343628420,1732762238979,-500.0,9.894e-05,2]
[343628422,1732762238988,-500.0,9.894e-05,2]
[343628424,1732762238998,-213.57748972,9.894e-05,2]
[343628426,1732762239007,-342.76204568,9.894e-05,2]
[343628428,1732762239016,-500.0,9.894e-05,2]
[343628430,1732762239025,-972.09,9.894e-05,2]
[343628432,1732762239036,-500.0,9.894e-05,2]
[343628434,1732762239045,-500.0,9.894e-05,2]
[343628436,1732762239054,-264.34,9.894e-05,2]
[343628438,1732762239063,-500.0,9.894e-05,2]
[343628440,1732762239072,-500.0,9.894e-05,2]
[343628442,1732762239081,-500.0,9.894e-05,2]
[343628444,1732762239090,-500.0,9.894e-05,2]
[343628446,1732762239100,-500.0,9.894e-05,2]
[343628448,1732762239109,-500.0,9.894e-05,2]
[343628450,1732762239118,-505.47401529,9.894e-05,2]
[343628452,1732762239127,-500.0,9.894e-05,2]
[343628454,1732762239136,-500.0,9.894e-05,2]
[343628456,1732762239145,-500.0,9.894e-05,2]
[343628457,1732762239155,-500.0,9.894e-05,2]
[343628459,1732762239164,-500.0,9.894e-05,2]
[343628461,1732762239173,-500.0,9.894e-05,2]
[343628463,1732762239182,-500.0,9.894e-05,2]
[343628465,1732762239193,-500.0,9.894e-05,2]
[343628467,1732762239202,-503.58887456,9.894e-05,2]
[343628469,1732762239211,-500.0,9.894e-05,2]
[343628471,1732762239221,-505.11869885,9.894e-05,2]
[343628473,1732762239230,-562.54,9.894e-05,2]
[343628475,1732762239239,-500.0,9.894e-05,2]
[343628477,1732762239248,-629.92,9.894e-05,2]
[343628479,1732762239258,-500.0,9.894e-05,2]
[343628481,1732762239267,-512.0572681,9.894e-05,2]
[343628483,1732762239276,-500.0,9.894e-05,2]
[343628485,1732762239285,-500.0,9.894e-05,2]
[343628486,1732762239294,-500.0,9.894e-05,2]
[343628487,1732762239304,-507.30617169,9.894e-05,2]
[343628488,1732762239313,-500.0,9.894e-05,2]
[343628489,1732762239323,-502.38441545,9.894e-05,2]
[343628490,1732762239332,-506.35339663,9.894e-05,2]
[343628491,1732762239342,-517.55565156,9.894e-05,2]
[343628492,1732762239351,-508.95335287,9.894e-05,2]
[343628493,1732762239360,-500.0,9.894e-05,2]
[343628494,1732762239369,-500.0,9.894e-05,2]
[343628495,1732762239379,-150.0,9.894e-05,2]
[343628496,1732762239390,-504.46565091,9.894e-05,2]
[343628497,1732762239399,-503.87692658,9.894e-05,2]
[343628498,1732762239408,-500.0,9.894e-05,2]
[343628499,1732762239418,-500.0,9.894e-05,2]
[343628500,1732762239429,-500.0,9.894e-05,2]
[343628501,1732762239438,-500.0,9.894e-05,2]
[343628502,1732762239449,-500.0,9.894e-05,2]
[343628503,1732762239459,-513.96652778,9.894e-05,2]
[343628504,1732762239468,-1724.83,9.894e-05,2]
[343628505,1732762239477,-155.01343479,9.894e-05,2]
[343628506,1732762239487,-500.0,9.894e-05,2]
[343628507,1732762239496,-501.7478026,9.894e-05,2]
[343628508,1732762239506,-500.0,9.894e-05,2]
[343628509,1732762239516,-500.0,9.894e-05,2]
[343628510,1732762239527,-63.09754298,9.894e-05,2]
[343628511,1732762239562,-386.90245702,9.894e-05,2]
[343628512,1732762239571,-500.0,9.894e-05,2]
[343628513,1732762239580,-508.67691841,9.894e-05,2]
[343628514,1732762239589,-521.17210603,9.894e-05,2]
[343628515,1732762239599,-197.20816957,9.899e-05,2]
[343628516,1732762239609,-530.92178193,9.9e-05,2]
[343628521,1732762240028,-481.07821807,9.9e-05,2]
[343628522,1732762240038,-150.0,9.905e-05,2]
[343628523,1732762240047,-150.0,9.908e-05,2]
[343628524,1732762240056,-150.0,9.913e-05,2]
[343628525,1732762240065,-150.0,9.92e-05,2]
[343628526,1732762240075,-150.0,9.955e-05,2]
[343628527,1732762240085,-150.0,9.96e-05,2]
[343628528,1732762240093,-215.73,9.971e-05,2]
[343628529,1732762240102,-1000.0,9.984e-05,2]
[343628530,1732762240111,-500.0,9.993e-05,2]
[343628531,1732762240120,-500.0,9.993e-05,2]
[343628532,1732762240130,-513.60759911,9.993e-05,2]
[343628533,1732762240139,-500.0,9.993e-05,2]
[343628534,1732762240148,-504.40737857,9.993e-05,2]
[343628535,1732762240157,-500.0,9.993e-05,2]
[343628536,1732762240166,-500.0,9.993e-05,2]
[343628537,1732762240177,-500.0,9.993e-05,2]
[343628538,1732762240197,-500.0,9.993e-05,2]
[343628539,1732762240214,-313.25,9.993e-05,2]
[343628540,1732762240223,-323.92,9.993e-05,2]
[343628541,1732762240234,-193.86,9.993e-05,2]
[343628542,1732762240244,-500.0,9.993e-05,2]
[343628543,1732762240254,-513.87322055,9.993e-05,2]
[343628544,1732762240263,-500.0,9.993e-05,2]
[343628545,1732762240272,-314.92665639,9.993e-05,2]
[343628546,1732762240282,-574.28004072,9.993e-05,2]
[343628547,1732762240292,-500.0,9.993e-05,2]
[343628548,1732762240302,-309.19984741,9.993e-05,2]
[343628549,1732762240312,-500.0,9.993e-05,2]
[343628550,1732762240322,-500.0,9.993e-05,2]
[343628551,1732762240332,-502.72,9.993e-05,2]
[343628552,1732762240341,-500.0,9.993e-05,2]
[343628553,1732762240350,-544.77,9.993e-05,2]
[343628554,1732762240360,-500.0,9.993e-05,2]
[343628555,1732762240369,-500.0,9.993e-05,2]
[343628556,1732762240378,-500.0,9.993e-05,2]
[343628557,1732762240387,-522.3359047,9.993e-05,2]
[343628558,1732762240397,-994.27,9.993e-05,2]
[343628559,1732762240407,-500.0,9.993e-05,2]
[343628560,1732762240416,-500.0,9.993e-05,2]
[343628561,1732762240426,-500.0,9.993e-05,2]
[343628562,1732762240435,-500.0,9.993e-05,2]
[343628563,1732762240446,-500.0,9.993e-05,2]
[343628564,1732762240456,-500.0,9.993e-05,2]
[343628565,1732762240466,-500.0,9.993e-05,2]
[343628566,1732762240475,-500.0,9.993e-05,2]
[343628567,1732762240485,-500.0,9.993e-05,2]
[343628568,1732762240494,-500.0,9.993e-05,2]
[343628569,1732762240504,-500.0,9.993e-05,2]
[343628570,1732762240513,-500.0,9.993e-05,2]
[343628571,1732762240523,-500.0,9.993e-05,2]
[343628572,1732762240532,-500.0,9.993e-05,2]
[343628573,1732762240542,-972.09,9.993e-05,2]
[343628574,1732762240552,-569.15768491,9.993e-05,2]
[343628575,1732762240561,-341.11412715,9.993e-05,2]
[343628576,1732762240571,-500.0,9.993e-05,2]
[343628577,1732762240580,-500.0,9.993e-05,2]
[343628578,1732762240589,-597.265879,9.993e-05,2]
[343628579,1732762240599,-500.0,9.993e-05,2]
[343628580,1732762240609,-500.0,9.993e-05,2]
[343628581,1732762240619,-161.7,9.993e-05,2]
[343628582,1732762240631,-500.0,9.993e-05,2]
[343628583,1732762240641,-500.0,9.993e-05,2]
[343628584,1732762240652,-500.0,9.993e-05,2]
[343628585,1732762240661,-312.58,9.993e-05,2]
[343628586,1732762240671,-500.0,9.993e-05,2]
[343628587,1732762240680,-500.0,9.993e-05,2]
[343628588,1732762240690,-538.60145517,9.993e-05,2]
[343628589,1732762240700,-629.92,9.993e-05,2]
[343628590,1732762240710,-500.0,9.993e-05,2]
[343628591,1732762240719,-506.31831837,9.993e-05,2]
[343628592,1732762240729,-500.0,9.993e-05,2]
[343628593,1732762240739,-500.0,9.993e-05,2]
[343628594,1732762240749,-272.68633452,9.993e-05,2]
[343628595,1732762240759,-150.0,9.993e-05,2]
[343628596,1732762240768,-500.0,9.993e-05,2]
[343628597,1732762240779,-500.0,9.993e-05,2]
[343628598,1732762240788,-500.0,9.993e-05,2]
[343628599,1732762240803,-1724.83,9.993e-05,2]
[343628600,1732762240813,-500.0,9.993e-05,2]
[343628601,1732762240823,-500.0,9.993e-05,2]
[343628602,1732762240834,-279.72420517,9.993e-05,2]
[343628603,1732762240844,-501.82461022,9.994e-05,2]
[343628604,1732762240854,-500.0,9.994e-05,2]
[343628605,1732762240863,-502.48744042,9.994e-05,2]
[343628606,1732762240873,-500.0,9.994e-05,2]
[343628607,1732762240883,-500.0,9.994e-05,2]
[343628608,1732762240893,-521.11,9.994e-05,2]
[343628609,1732762240903,-500.0,9.994e-05,2]
[343628610,1732762240912,-500.0,9.994e-05,2]
[343628611,1732762240921,-518.96,9.994e-05,2]
[343628612,1732762240930,-301.74,9.994e-05,2]
[343628613,1732762240940,-500.0,9.994e-05,2]
[343628614,1732762240954,-250.2,9.994e-05,2]
[343628615,1732762240963,-500.0,9.994e-05,2]
[343628616,1732762240972,-500.0,9.994e-05,2]
[343628617,1732762240982,-500.0,9.994e-05,2]
[343628618,1732762240991,-500.0,9.994e-05,2]
[343628619,1732762241000,-500.0,9.994e-05,2]
[343628620,1732762241009,-500.0,9.994e-05,2]
[343628621,1732762241018,-500.0,9.994e-05,2]
[343628622,1732762241027,-994.27,9.994e-05,2]
[343628623,1732762241038,-500.0,9.994e-05,2]
[343628624,1732762241047,-500.0,9.994e-05,2]
[343628625,1732762241056,-516.32913655,9.994e-05,2]
[343628626,1732762241065,-500.0,9.994e-05,2]
[343628627,1732762241075,-500.0,9.994e-05,2]
[343628628,1732762241084,-500.0,9.994e-05,2]
[343628629,1732762241093,-500.0,9.994e-05,2]
[343628630,1732762241102,-500.0,9.994e-05,2]
[343628631,1732762241112,-500.0,9.994e-05,2]
[343628632,1732762241122,-500.0,9.994e-05,2]
[343628633,1732762241132,-500.0,9.994e-05,2]
[343628634,1732762241141,-545.69,9.994e-05,2]
[343628635,1732762241151,-500.0,9.994e-05,2]
[343628636,1732762241161,-500.0,9.994e-05,2]
[343628637,1732762241170,-972.09,9.994e-05,2]
[343628638,1732762241179,-500.0,9.994e-05,2]
[343628639,1732762241188,-510.03480269,9.994e-05,2]
[343628640,1732762241202,-500.0,9.994e-05,2]
[343628641,1732762241211,-500.0,9.994e-05,2]
[343628642,1732762241221,-500.0,9.994e-05,2]
[343628643,1732762241230,-500.0,9.994e-05,2]
[343628644,1732762241240,-195.76171586,9.994e-05,2]
[343628645,1732762241249,-500.0,9.994e-05,2]
[343628646,1732762241259,-500.0,9.994e-05,2]
[343628647,1732762241268,-512.80533357,9.994e-05,2]
[343628648,1732762241277,-500.0,9.994e-05,2]
[343628649,1732762241287,-500.0,9.994e-05,2]
[343628650,1732762241296,-505.01295074,9.994e-05,2]
[343628651,1732762241310,-500.0,9.994e-05,2]
[343628652,1732762241319,-503.22349961,9.994e-05,2]
[343628653,1732762241328,-511.26432679,9.994e-05,2]
[343628654,1732762241338,-517.15880294,9.994e-05,2]
[343628655,1732762241347,-514.52257167,9.994e-05,2]
[343628656,1732762241357,-500.0,9.994e-05,2]
[343628657,1732762241366,-501.67365794,9.994e-05,2]
[343628658,1732762241376,-554.89549261,9.994e-05,2]
[343628659,1732762241386,-503.30402798,9.994e-05,2]
[343628660,1732762241396,-500.0,9.994e-05,2]
[343628661,1732762241406,-512.12869681,9.994e-05,2]
[343628662,1732762241415,-522.59659236,9.994e-05,2]
[343628663,1732762241425,-521.84680366,9.994e-05,2]
[343628664,1732762241435,-629.92,9.994e-05,2]
[343628665,1732762241446,-237.4,9.994e-05,2]
[343628666,1732762241455,-500.0,9.994e-05,2]
[343628667,1732762241465,-500.0,9.994e-05,2]
[343628668,1732762241474,-208.47,9.994e-05,2]
[343628669,1732762241484,-537.33989182,9.994e-05,2]
[343628670,1732762241493,-500.46876017,9.994e-05,2]
[343628671,1732762241502,-500.0,9.994e-05,2]
[343628672,1732762241512,-515.94093178,9.994e-05,2]
[343628673,1732762241522,-529.24333234,9.994e-05,2]
[343628674,1732762241533,-674.79,9.994e-05,2]
[343628675,1732762241542,-2347.87,9.994e-05,2]
[343628676,1732762241552,-500.0,9.994e-05,2]
[343628677,1732762241561,-501.82,9.994e-05,2]
[343628678,1732762241571,-500.0,9.994e-05,2]
[343628679,1732762241579,-440.32068643,9.994e-05,2]
[343628680,1732762241590,-500.0,9.994e-05,2]
[343628681,1732762241601,-504.18288711,9.994e-05,2]
[343628682,1732762241610,-537.99,9.994e-05,2]
[343628683,1732762241621,-521.70259737,9.994e-05,2]
[343628684,1732762241630,-500.0,9.994e-05,2]
[343628685,1732762241639,-577.41,9.994e-05,2]
[343628686,1732762241649,-500.0,9.994e-05,2]
[343628687,1732762241659,-500.0,9.994e-05,2]
[343628688,1732762241668,-584.83,9.994e-05,2]
[343628689,1732762241677,-500.0,9.994e-05,2]
[343628690,1732762241686,-500.0,9.994e-05,2]
[343628691,1732762241698,-578.31,9.994e-05,2]
[343628692,1732762241707,-500.0,9.994e-05,2]
[343628693,1732762241716,-1724.83,9.994e-05,2]
[343628694,1732762241725,-260.66759504,9.994e-05,2]
[343628695,1732762241734,-500.0,9.994e-05,2]
[343628696,1732762241743,-500.0,9.994e-05,2]
[343628697,1732762241753,-500.0,9.994e-05,2]
[343628698,1732762241762,-500.0,9.994e-05,2]
[343628699,1732762241772,-633.26,9.994e-05,2]
[343628700,1732762241781,-500.0,9.994e-05,2]
[343628701,1732762241791,-500.0,9.994e-05,2]
[343628702,1732762241806,-502.19158193,9.994e-05,2]
[343628703,1732762241816,-500.0,9.994e-05,2]
[343628704,1732762241825,-500.0,9.994e-05,2]
[343628705,1732762241834,-500.0,9.994e-05,2]
[343628706,1732762241845,-545.55657077,9.994e-05,2]
[343628707,1732762241855,-504.83170434,9.994e-05,2]
[343628708,1732762241864,-500.0,9.994e-05,2]
[343628709,1732762241875,-877.95,9.994e-05,2]
[343628710,1732762241885,-506.07804303,9.994e-05,2]
[343628711,1732762241895,-600.58,9.994e-05,2]
[343628712,1732762241904,-500.0,9.994e-05,2]
[343628713,1732762241915,-500.0,9.994e-05,2]
[343628714,1732762241925,-1227.3,9.994e-05,2]
[343628715,1732762241934,-556.86283781,9.994e-05,2]
[343628716,1732762241944,-500.0,9.994e-05,2]
[343628717,1732762241953,-500.0,9.994e-05,2]
[343628718,1732762241963,-571.32,9.994e-05,2]
[343628719,1732762241972,-500.0,9.994e-05,2]
[343628720,1732762241981,-500.0,9.994e-05,2]
[343628721,1732762241992,-500.0,9.994e-05,2]
[343628722,1732762242002,-500.0,9.994e-05,2]
[343628723,1732762242011,-308.53486039,9.994e-05,2]
[343628724,1732762242020,-500.0,9.994e-05,2]
[343628725,1732762242030,-500.0,9.994e-05,2]
[343628726,1732762242039,-706.74,9.994e-05,2]
[343628727,1732762242049,-1052.32,9.994e-05,2]
[343628728,1732762242060,-500.0,9.994e-05,2]
[343628729,1732762242069,-500.0,9.994e-05,2]
[343628730,1732762242079,-500.0,9.994e-05,2]
[343628731,1732762242089,-501.00021204,9.994e-05,2]
[343628732,1732762242098,-653.0,9.994e-05,2]
[343628733,1732762242107,-500.0,9.994e-05,2]
[343628734,1732762242117,-501.0545343,9.994e-05,2]
[343628735,1732762242126,-500.0,9.994e-05,2]
[343628736,1732762242135,-2566.24,9.994e-05,2]
[343628737,1732762242144,-500.0,9.994e-05,2]
[343628738,1732762242153,-500.0,9.994e-05,2]
[343628739,1732762242162,-500.0,9.994e-05,2]
[343628740,1732762242172,-500.0,9.994e-05,2]
[343628741,1732762242181,-500.0,9.994e-05,2]
[343628742,1732762242191,-743.33,9.994e-05,2]
[343628743,1732762242202,-504.15078652,9.994e-05,2]
[343628744,1732762242211,-502.59716426,9.994e-05,2]
[343628745,1732762242220,-500.0,9.994e-05,2]
[343628746,1732762242230,-500.0,9.994e-05,2]
[343628747,1732762242240,-500.0,9.994e-05,2]
[343628748,1732762242249,-844.4,9.994e-05,2]
[343628749,1732762242259,-506.06561025,9.994e-05,2]
[343628750,1732762242268,-1106.3,9.994e-05,2]
[343628751,1732762242277,-536.21500708,9.994e-05,2]
[343628752,1732762242286,-500.0,9.994e-05,2]
[343628753,1732762242296,-827.25,9.994e-05,2]
[343628754,1732762242306,-153.67591719,9.994e-05,2]
[343628755,1732762242315,-500.0,9.995e-05,2]
[343628756,1732762242324,-500.0,9.995e-05,2]
[343628757,1732762242333,-500.0,9.995e-05,2]
[343628758,1732762242343,-500.0,9.995e-05,2]
[343628759,1732762242352,-500.0,9.995e-05,2]
[343628760,1732762242361,-530.10685812,9.995e-05,2]
[343628761,1732762242370,-500.0,9.995e-05,2]
[343628762,1732762242380,-500.0,9.995e-05,2]
[343628763,1732762242389,-649.36,9.995e-05,2]
[343628764,1732762242399,-513.37191847,9.995e-05,2]
[343628765,1732762242408,-801.14,9.995e-05,2]
[343628766,1732762242417,-500.0,9.995e-05,2]
[343628767,1732762242426,-500.0,9.995e-05,2]
[343628768,1732762242435,-500.0,9.995e-05,2]
[343628769,1732762242446,-507.20763848,9.995e-05,2]
[343628770,1732762242455,-994.27,9.995e-05,2]
[343628771,1732762242464,-535.59123753,9.995e-05,2]
[343628772,1732762242473,-500.0,9.995e-05,2]
[343628773,1732762242482,-518.38721496,9.995e-05,2]
[343628774,1732762242492,-500.0,9.995e-05,2]
[343628775,1732762242501,-500.0,9.995e-05,2]
[343628776,1732762242510,-500.0,9.995e-05,2]
[343628777,1732762242519,-500.0,9.995e-05,2]
[343628778,1732762242529,-500.0,9.995e-05,2]
[343628779,1732762242538,-508.01077553,9.995e-05,2]
[343628780,1732762242547,-419.74557148,9.995e-05,2]
[343628781,1732762242556,-500.0,9.995e-05,2]
[343628782,1732762242565,-529.88650206,9.995e-05,2]
[343628783,1732762242574,-500.0,9.995e-05,2]
[343628784,1732762242583,-500.0,9.995e-05,2]
[343628785,1732762242593,-500.0,9.995e-05,2]
[343628786,1732762242603,-500.0,9.995e-05,2]
[343628787,1732762242612,-506.75418252,9.995e-05,2]
[343628788,1732762242621,-500.0,9.995e-05,2]
[343628789,1732762242631,-500.0,9.995e-05,2]
[343628790,1732762242641,-500.0,9.995e-05,2]
[343628791,1732762242650,-509.40551835,9.995e-05,2]
[343628792,1732762242659,-500.0,9.995e-05,2]
[343628793,1732762242668,-506.58425653,9.995e-05,2]
[343628794,1732762242677,-514.85370647,9.995e-05,2]
[343628795,1732762242686,-543.75,9.995e-05,2]
[343628796,1732762242696,-752.56,9.995e-05,2]
[343628797,1732762242706,-281.31,9.995e-05,2]
[343628798,1732762242715,-500.0,9.995e-05,2]
[343628799,1732762242725,-500.0,9.995e-05,2]
[343628800,1732762242734,-972.09,9.995e-05,2]
[343628801,1732762242743,-500.0,9.995e-05,2]
[343628802,1732762242753,-500.0,9.995e-05,2]
[343628803,1732762242762,-520.75341094,9.995e-05,2]
[343628804,1732762242771,-500.0,9.995e-05,2]
[343628805,1732762242781,-500.0,9.995e-05,2]
[343628806,1732762242790,-505.65,9.995e-05,2]
[343628807,1732762242800,-511.74099837,9.995e-05,2]
[343628808,1732762242812,-500.0,9.995e-05,2]
[343628809,1732762242822,-500.0,9.995e-05,2]
[343628810,1732762242831,-500.0,9.995e-05,2]
[343628811,1732762242840,-500.0,9.995e-05,2]
[343628812,1732762242850,-500.0,9.995e-05,2]
[343628813,1732762242859,-500.0,9.995e-05,2]
[343628814,1732762242868,-500.0,9.995e-05,2]
[343628815,1732762242879,-500.0,9.995e-05,2]
[343628816,1732762242888,-500.0,9.995e-05,2]
[343628817,1732762242897,-500.0,9.995e-05,2]
[343628818,1732762242906,-264.9903369,9.995e-05,2]
[343628819,1732762242915,-500.0,9.995e-05,2]
[343628820,1732762242926,-629.92,9.995e-05,2]
[343628821,1732762242937,-500.0,9.995e-05,2]
[343628822,1732762242949,-500.0,9.995e-05,2]
[343628823,1732762242957,-503.29369456,9.995e-05,2]
[343628824,1732762242967,-349.78,9.995e-05,2]
[343628825,1732762242976,-500.0,9.995e-05,2]
[343628826,1732762242985,-500.0,9.995e-05,2]
[343628827,1732762242995,-500.0,9.995e-05,2]
[343628828,1732762243005,-500.0,9.995e-05,2]
[343628829,1732762243014,-501.68,9.995e-05,2]
[343628830,1732762243023,-500.0,9.995e-05,2]
[343628831,1732762243032,-624.15592103,9.995e-05,2]
[343628832,1732762243043,-2105.76,9.995e-05,2]
[343628833,1732762243052,-500.0,9.995e-05,2]
[343628834,1732762243062,-500.0,9.995e-05,2]
[343628835,1732762243071,-500.0,9.995e-05,2]
[343628836,1732762243080,-500.0,9.995e-05,2]
[343628837,1732762243088,-566.21,9.995e-05,2]
[343628838,1732762243098,-500.0,9.995e-05,2]
[343628839,1732762243107,-818.66,9.995e-05,2]
[343628840,1732762243117,-500.0,9.995e-05,2]
[343628841,1732762243126,-500.0,9.995e-05,2]
[343628842,1732762243138,-500.0,9.995e-05,2]
[343628843,1732762243148,-500.0,9.995e-05,2]
[343628844,1732762243157,-500.0,9.995e-05,2]
[343628845,1732762243166,-1724.83,9.995e-05,2]
[343628846,1732762243175,-500.0,9.995e-05,2]
[343628847,1732762243184,-500.0,9.995e-05,2]
[343628848,1732762243195,-909.33,9.995e-05,2]
[343628849,1732762243205,-302.57188218,9.995e-05,2]
[343628850,1732762243214,-500.0,9.995e-05,2]
[343628851,1732762243223,-172.72,9.995e-05,2]
[343628852,1732762243233,-516.79766829,9.995e-05,2]
[343628853,1732762243244,-500.0,9.995e-05,2]
[343628854,1732762243254,-500.0,9.995e-05,2]
[343628855,1732762243263,-606.27,9.995e-05,2]
[343628856,1732762243273,-500.0,9.995e-05,2]
[343628857,1732762243284,-500.0,9.995e-05,2]
[343628858,1732762243294,-500.0,9.995e-05,2]
[343628859,1732762243303,-1169.35,9.995e-05,2]
[343628860,1732762243314,-500.0,9.995e-05,2]
[343628861,1732762243325,-500.0,9.995e-05,2]
[343628862,1732762243336,-500.0,9.995e-05,2]
[343628863,1732762243345,-500.0,9.995e-05,2]
[343628864,1732762243355,-819.28,9.995e-05,2]
[343628865,1732762243364,-500.0,9.995e-05,2]
[343628866,1732762243374,-500.0,9.995e-05,2]
[343628867,1732762243383,-531.81368919,9.995e-05,2]
[343628868,1732762243393,-500.0,9.995e-05,2]
[343628869,1732762243403,-500.0,9.995e-05,2]
[343628870,1732762243412,-799.97,9.995e-05,2]
[343628871,1732762243422,-500.0,9.995e-05,2]
[343628872,1732762243432,-500.0,9.995e-05,2]
[343628873,1732762243441,-500.0,9.995e-05,2]
[343628874,1732762243452,-500.0,9.995e-05,2]
[343628875,1732762243461,-500.0,9.995e-05,2]
[343628876,1732762243471,-643.32,9.995e-05,2]
[343628877,1732762243480,-500.0,9.996e-05,2]
[343628878,1732762243489,-500.0,9.996e-05,2]
[343628879,1732762243498,-328.429,9.996e-05,2]
[343628880,1732762243509,-625.24469749,9.996e-05,2]
[343628881,1732762243518,-500.0,9.996e-05,2]
[343628882,1732762243528,-500.0,9.996e-05,2]
[343628883,1732762243538,-222.66,9.996e-05,2]
[343628884,1732762243547,-500.0,9.996e-05,2]
[343628885,1732762243558,-500.0,9.996e-05,2]
[343628886,1732762243567,-500.0,9.996e-05,2]
[343628887,1732762243576,-994.27,9.996e-05,2]
[343628888,1732762243585,-500.0,9.996e-05,2]
[343628889,1732762243594,-500.0,9.996e-05,2]